[Event "Titled Tuesday Blitz November 07 Late 2023"]
[White "Kamsky, Gata"]
[Black "Firouzja, Alireza"]
[WhiteFideId "2000024"]
[BlackFideId "12573981"]
[WhiteElo "2886"]
[BlackElo "3079"]
[Result "0-1"]
[Round "9"]
[TimeControl "180+1"]
[Date "2023.11.07"]
[WhiteClock "0:00:00"]
[BlackClock "0:00:09"]
[Board "2"]

1. d4 {[%clk 0:03:00]}  a6 {[%clk 0:02:58]} 2. Bf4 {[%clk 0:02:59]}  g6 {[%clk 0:02:57]} 3. c3 {[%clk 0:02:59]}  Bg7 {[%clk 0:02:57]} 4. Nf3 {[%clk 0:02:59]}  Nh6 {[%clk 0:02:56]} 5. e4 {[%clk 0:02:58]}  f6 {[%clk 0:02:56]} 6. h4 {[%clk 0:02:55]}  Nf7 {[%clk 0:02:56]} 7. h5 {[%clk 0:02:55]}  g5 {[%clk 0:02:56]} 8. Bg3 {[%clk 0:02:49]}  c6 {[%clk 0:02:56]} 9. d5 {[%clk 0:02:45]}  d6 {[%clk 0:02:55]} 10. Nd4 {[%clk 0:02:44]}  c5 {[%clk 0:02:48]} 11. h6 {[%clk 0:02:39]}  Nxh6 {[%clk 0:02:18]} 12. Ne6 {[%clk 0:02:30]}  Bxe6 {[%clk 0:02:17]} 13. dxe6 {[%clk 0:02:30]}  O-O {[%clk 0:02:12]} 14. Bc4 {[%clk 0:02:06]}  Nc6 {[%clk 0:02:05]} 15. Nd2 {[%clk 0:02:03]}  Qe8 {[%clk 0:01:56]} 16. Qh5 {[%clk 0:01:58]}  Qxh5 {[%clk 0:01:44]} 17. Rxh5 {[%clk 0:01:58]}  Ng4 {[%clk 0:01:45]} 18. Ke2 {[%clk 0:01:56]}  Nge5 {[%clk 0:01:44]} 19. Bd5 {[%clk 0:01:55]}  Ng6 {[%clk 0:01:41]} 20. Rah1 {[%clk 0:01:42]}  h6 {[%clk 0:01:41]} 21. Nc4 {[%clk 0:01:39]}  f5 {[%clk 0:01:33]} 22. Bxd6 {[%clk 0:01:30]}  exd6 {[%clk 0:01:11]} 23. e7+ {[%clk 0:01:30]}  Rf7 {[%clk 0:01:11]} 24. Bxf7+ {[%clk 0:01:19]}  Kxf7 {[%clk 0:01:12]} 25. Nxd6+ {[%clk 0:01:19]}  Kxe7 {[%clk 0:01:12]} 26. Nxf5+ {[%clk 0:01:19]}  Kf6 {[%clk 0:01:11]} 27. g3 {[%clk 0:01:15]}  Re8 {[%clk 0:01:10]} 28. f3 {[%clk 0:01:13]}  g4 {[%clk 0:01:06]} 29. Ne3 {[%clk 0:01:06]}  gxf3+ {[%clk 0:01:05]} 30. Kxf3 {[%clk 0:01:07]}  Nge5+ {[%clk 0:01:03]} 31. Ke2 {[%clk 0:01:06]}  Kg6 {[%clk 0:01:03]} 32. Rf5 {[%clk 0:00:54]}  Nf7 {[%clk 0:00:52]} 33. Rh4 {[%clk 0:00:46]}  Ng5 {[%clk 0:00:51]} 34. Rxc5 {[%clk 0:00:35]}  Nxe4 {[%clk 0:00:51]} 35. Rg4+ {[%clk 0:00:35]}  Kh7 {[%clk 0:00:40]} 36. Rf5 {[%clk 0:00:28]}  Nd6 {[%clk 0:00:40]} 37. Rd5 {[%clk 0:00:26]}  Be5 {[%clk 0:00:35]} 38. Kf3 {[%clk 0:00:21]}  Re7 {[%clk 0:00:32]} 39. Nc4 {[%clk 0:00:19]}  Nf7 {[%clk 0:00:31]} 40. Kg2 {[%clk 0:00:18]}  Bc7 {[%clk 0:00:28]} 41. Rd2 {[%clk 0:00:17]}  Ng5 {[%clk 0:00:26]} 42. Rf2 {[%clk 0:00:15]}  Kg6 {[%clk 0:00:24]} 43. Nd2 {[%clk 0:00:15]}  Ne5 {[%clk 0:00:21]} 44. Rd4 {[%clk 0:00:14]}  h5 {[%clk 0:00:17]} 45. Ne4 {[%clk 0:00:13]}  Ng4 {[%clk 0:00:15]} 46. Re2 {[%clk 0:00:13]}  Nf6 {[%clk 0:00:12]} 47. Nxg5 {[%clk 0:00:06]}  Rxe2+ {[%clk 0:00:12]} 48. Kf3 {[%clk 0:00:06]}  Rxb2 {[%clk 0:00:12]} 49. Ne6 {[%clk 0:00:06]}  Bb6 {[%clk 0:00:09]} 50. Nf4+ {[%clk 0:00:00]}  Kf5 {[%clk 0:00:09]} 0-1


[Site "https://www.chess.com"]

[Event "Titled Tuesday Blitz November 07 Late 2023"]
[White "Kozak, Antoni"]
[Black "Aravindh, Chithambaram VR."]
[WhiteFideId "21832030"]
[BlackFideId "5072786"]
[WhiteElo "2824"]
[BlackElo "2941"]
[Result "0-1"]
[Round "9"]
[TimeControl "180+1"]
[Date "2023.11.07"]
[WhiteClock "0:00:00"]
[BlackClock "0:00:15"]
[Board "6"]

1. Nf3 {[%clk 0:03:00]}  Nf6 {[%clk 0:02:59]} 2. c4 {[%clk 0:03:00]}  g6 {[%clk 0:02:59]} 3. Nc3 {[%clk 0:02:56]}  c5 {[%clk 0:02:59]} 4. e4 {[%clk 0:02:54]}  Nc6 {[%clk 0:02:58]} 5. d4 {[%clk 0:02:55]}  cxd4 {[%clk 0:02:57]} 6. Nxd4 {[%clk 0:02:55]}  Nxd4 {[%clk 0:02:57]} 7. Qxd4 {[%clk 0:02:55]}  d6 {[%clk 0:02:58]} 8. Be3 {[%clk 0:02:54]}  Bg7 {[%clk 0:02:58]} 9. f3 {[%clk 0:02:54]}  O-O {[%clk 0:02:58]} 10. Qd2 {[%clk 0:02:55]}  a5 {[%clk 0:02:58]} 11. Be2 {[%clk 0:02:55]}  a4 {[%clk 0:02:58]} 12. O-O {[%clk 0:02:55]}  Be6 {[%clk 0:02:58]} 13. Rac1 {[%clk 0:02:55]}  Nd7 {[%clk 0:02:57]} 14. Rfd1 {[%clk 0:02:42]}  Ne5 {[%clk 0:02:49]} 15. Nd5 {[%clk 0:02:38]}  f5 {[%clk 0:02:43]} 16. Nf4 {[%clk 0:02:26]}  Bf7 {[%clk 0:02:40]} 17. exf5 {[%clk 0:02:26]}  gxf5 {[%clk 0:02:41]} 18. Kh1 {[%clk 0:02:26]}  Nc6 {[%clk 0:02:29]} 19. Nd5 {[%clk 0:02:13]}  Qa5 {[%clk 0:01:52]} 20. Qc2 {[%clk 0:01:44]}  Nb4 {[%clk 0:01:27]} 21. Nxb4 {[%clk 0:00:58]}  Qxb4 {[%clk 0:01:28]} 22. Bd4 {[%clk 0:00:57]}  Bxd4 {[%clk 0:01:12]} 23. Rxd4 {[%clk 0:00:57]}  Qc5 {[%clk 0:01:13]} 24. Rcd1 {[%clk 0:00:55]}  Bg6 {[%clk 0:01:07]} 25. Rd5 {[%clk 0:00:52]}  Qe3 {[%clk 0:01:04]} 26. R5d3 {[%clk 0:00:47]}  f4 {[%clk 0:00:52]} 27. c5 {[%clk 0:00:27]}  Bxd3 {[%clk 0:00:37]} 28. Bxd3 {[%clk 0:00:27]}  Qxc5 {[%clk 0:00:37]} 29. Bxh7+ {[%clk 0:00:28]}  Kh8 {[%clk 0:00:36]} 30. Qd3 {[%clk 0:00:23]}  Rf6 {[%clk 0:00:32]} 31. Be4 {[%clk 0:00:18]}  Rg8 {[%clk 0:00:31]} 32. Bxb7 {[%clk 0:00:13]}  Qg5 {[%clk 0:00:19]} 33. Rg1 {[%clk 0:00:12]}  Rh6 {[%clk 0:00:18]} 34. g4 {[%clk 0:00:11]}  fxg3 {[%clk 0:00:16]} 35. Rg2 {[%clk 0:00:00]}  Qc1+ {[%clk 0:00:15]} 0-1


[Site "https://www.chess.com"]

[Event "Titled Tuesday Blitz November 07 Late 2023"]
[White "Szpar, Milosz"]
[Black "Pranav, V"]
[WhiteFideId "1184989"]
[BlackFideId "25060783"]
[WhiteElo "2829"]
[BlackElo "3059"]
[Result "1-0"]
[Round "9"]
[TimeControl "180+1"]
[Date "2023.11.07"]
[WhiteClock "0:00:19"]
[BlackClock "0:00:00"]
[Board "9"]

1. Nf3 {[%clk 0:03:00]}  Nf6 {[%clk 0:03:00]} 2. c4 {[%clk 0:02:59]}  e6 {[%clk 0:03:00]} 3. b3 {[%clk 0:02:59]}  b6 {[%clk 0:02:59]} 4. g3 {[%clk 0:02:59]}  Bb7 {[%clk 0:03:00]} 5. Bg2 {[%clk 0:03:00]}  Be7 {[%clk 0:03:00]} 6. O-O {[%clk 0:03:00]}  O-O {[%clk 0:03:01]} 7. Bb2 {[%clk 0:03:01]}  d5 {[%clk 0:02:59]} 8. cxd5 {[%clk 0:02:57]}  exd5 {[%clk 0:02:59]} 9. e3 {[%clk 0:02:57]}  Nbd7 {[%clk 0:02:59]} 10. Nc3 {[%clk 0:02:57]}  a6 {[%clk 0:02:58]} 11. Ne2 {[%clk 0:02:56]}  Re8 {[%clk 0:02:58]} 12. Nf4 {[%clk 0:02:55]}  Bd6 {[%clk 0:02:56]} 13. d4 {[%clk 0:02:35]}  Ne4 {[%clk 0:02:54]} 14. Nd3 {[%clk 0:02:34]}  a5 {[%clk 0:02:48]} 15. Qc2 {[%clk 0:02:29]}  Nf8 {[%clk 0:02:45]} 16. Nde5 {[%clk 0:02:26]}  f6 {[%clk 0:02:43]} 17. Nd3 {[%clk 0:02:12]}  Qd7 {[%clk 0:02:42]} 18. Rac1 {[%clk 0:02:05]}  Rac8 {[%clk 0:02:39]} 19. Nd2 {[%clk 0:01:51]}  Nxd2 {[%clk 0:02:35]} 20. Qxd2 {[%clk 0:01:51]}  Ne6 {[%clk 0:02:36]} 21. Rc2 {[%clk 0:01:47]}  Ng5 {[%clk 0:02:35]} 22. Qc1 {[%clk 0:01:46]}  Qf5 {[%clk 0:02:31]} 23. Nf4 {[%clk 0:01:39]}  Bxf4 {[%clk 0:01:55]} 24. exf4 {[%clk 0:01:40]}  Ne6 {[%clk 0:01:55]} 25. h4 {[%clk 0:01:34]}  c6 {[%clk 0:01:48]} 26. Kh2 {[%clk 0:01:33]}  Rcd8 {[%clk 0:01:44]} 27. Re1 {[%clk 0:01:31]}  Nf8 {[%clk 0:01:38]} 28. Rce2 {[%clk 0:01:27]}  Qh5 {[%clk 0:01:33]} 29. Re7 {[%clk 0:01:23]}  Rxe7 {[%clk 0:01:28]} 30. Rxe7 {[%clk 0:01:24]}  Rd7 {[%clk 0:01:26]} 31. Qe1 {[%clk 0:01:24]}  Rxe7 {[%clk 0:00:35]} 32. Qxe7 {[%clk 0:01:24]}  Qf7 {[%clk 0:00:36]} 33. Qd8 {[%clk 0:01:21]}  b5 {[%clk 0:00:35]} 34. Qxa5 {[%clk 0:01:17]}  Ne6 {[%clk 0:00:30]} 35. f5 {[%clk 0:01:15]}  Nc7 {[%clk 0:00:25]} 36. Qa7 {[%clk 0:01:00]}  Bc8 {[%clk 0:00:17]} 37. Qb8 {[%clk 0:00:58]}  Qd7 {[%clk 0:00:16]} 38. a4 {[%clk 0:00:48]}  Na6 {[%clk 0:00:14]} 39. Qa8 {[%clk 0:00:44]}  bxa4 {[%clk 0:00:12]} 40. bxa4 {[%clk 0:00:44]}  Kf7 {[%clk 0:00:07]} 41. Ba3 {[%clk 0:00:41]}  Qc7 {[%clk 0:00:03]} 42. Bf1 {[%clk 0:00:31]}  Qb7 {[%clk 0:00:02]} 43. Qxb7+ {[%clk 0:00:25]}  Bxb7 {[%clk 0:00:03]} 44. Bd6 {[%clk 0:00:25]}  g6 {[%clk 0:00:03]} 45. fxg6+ {[%clk 0:00:25]}  hxg6 {[%clk 0:00:03]} 46. g4 {[%clk 0:00:25]}  Bc8 {[%clk 0:00:02]} 47. Kg3 {[%clk 0:00:25]}  Ke6 {[%clk 0:00:02]} 48. Bxa6 {[%clk 0:00:18]}  Bxa6 {[%clk 0:00:01]} 49. Bc5 {[%clk 0:00:19]}  Kf7 {[%clk 0:00:01]} 50. h5 {[%clk 0:00:18]}  gxh5 {[%clk 0:00:01]} 51. gxh5 {[%clk 0:00:18]}  Be2 {[%clk 0:00:02]} 52. f3 {[%clk 0:00:18]}  Kg7 {[%clk 0:00:01]} 53. a5 {[%clk 0:00:19]}  Kh6 {[%clk 0:00:01]} 54. Kg4 {[%clk 0:00:19]}  f5+ {[%clk 0:00:02]} 55. Kh4 {[%clk 0:00:18]}  Bxf3 {[%clk 0:00:00]} 56. a6 {[%clk 0:00:19]} 1-0


[Site "https://www.chess.com"]

[Event "Titled Tuesday Blitz November 07 Late 2023"]
[White "Ibarra Jerez, Jose Carlos"]
[Black "Rustemov, Alexander"]
[WhiteFideId "2226332"]
[BlackFideId "4119002"]
[WhiteElo "3002"]
[BlackElo "2815"]
[Result "0-1"]
[Round "9"]
[TimeControl "180+1"]
[Date "2023.11.07"]
[WhiteClock "0:00:09"]
[BlackClock "0:01:41"]
[Board "11"]

1. e4 {[%clk 0:02:59]}  e6 {[%clk 0:02:59]} 2. d3 {[%clk 0:03:00]}  c5 {[%clk 0:02:58]} 3. Nf3 {[%clk 0:02:59]}  Nc6 {[%clk 0:02:59]} 4. g3 {[%clk 0:03:00]}  g6 {[%clk 0:02:59]} 5. Bg2 {[%clk 0:03:00]}  Bg7 {[%clk 0:02:59]} 6. O-O {[%clk 0:03:01]}  Nge7 {[%clk 0:03:00]} 7. c3 {[%clk 0:03:02]}  d5 {[%clk 0:02:56]} 8. Qe2 {[%clk 0:02:58]}  h6 {[%clk 0:02:49]} 9. h4 {[%clk 0:02:58]}  b6 {[%clk 0:02:41]} 10. e5 {[%clk 0:02:57]}  Ba6 {[%clk 0:02:37]} 11. c4 {[%clk 0:02:53]}  O-O {[%clk 0:02:30]} 12. Nc3 {[%clk 0:02:52]}  Bb7 {[%clk 0:02:25]} 13. Bf4 {[%clk 0:02:51]}  Qd7 {[%clk 0:02:22]} 14. Rfe1 {[%clk 0:02:48]}  Rad8 {[%clk 0:02:20]} 15. Nb5 {[%clk 0:02:39]}  Nf5 {[%clk 0:02:10]} 16. cxd5 {[%clk 0:02:25]}  Qxd5 {[%clk 0:02:07]} 17. Qf1 {[%clk 0:01:16]}  Qxd3 {[%clk 0:02:03]} 18. g4 {[%clk 0:00:58]}  Qxf1+ {[%clk 0:01:57]} 19. Kxf1 {[%clk 0:00:57]}  Ba6 {[%clk 0:01:53]} 20. a4 {[%clk 0:00:52]}  Nfd4 {[%clk 0:01:53]} 21. Nxd4 {[%clk 0:00:37]}  Nxd4 {[%clk 0:01:54]} 22. Be4 {[%clk 0:00:28]}  Nxb5 {[%clk 0:01:52]} 23. axb5 {[%clk 0:00:29]}  Bxb5+ {[%clk 0:01:52]} 24. Kg2 {[%clk 0:00:29]}  a5 {[%clk 0:01:52]} 25. Ra3 {[%clk 0:00:29]}  Bc4 {[%clk 0:01:49]} 26. Kg3 {[%clk 0:00:26]}  Rd4 {[%clk 0:01:44]} 27. f3 {[%clk 0:00:25]}  Rfd8 {[%clk 0:01:42]} 28. Kh3 {[%clk 0:00:20]}  Bd5 {[%clk 0:01:41]} 29. Bc2 {[%clk 0:00:09]}  Rxf4 {[%clk 0:01:41]} 0-1


[Site "https://www.chess.com"]

[Event "Titled Tuesday Blitz November 07 Late 2023"]
[White "Sarana, Alexey"]
[Black "Ghasi, Ameet K"]
[WhiteFideId "24133795"]
[BlackFideId "409200"]
[WhiteElo "2974"]
[BlackElo "2813"]
[Result "1-0"]
[Round "9"]
[TimeControl "180+1"]
[Date "2023.11.07"]
[WhiteClock "0:00:22"]
[BlackClock "0:00:03"]
[Board "13"]

1. d4 {[%clk 0:03:00]}  g6 {[%clk 0:02:59]} 2. e4 {[%clk 0:03:00]}  Bg7 {[%clk 0:02:59]} 3. Nc3 {[%clk 0:03:00]}  d6 {[%clk 0:02:59]} 4. f4 {[%clk 0:03:01]}  e6 {[%clk 0:02:59]} 5. Nf3 {[%clk 0:03:01]}  Ne7 {[%clk 0:02:59]} 6. Bd3 {[%clk 0:03:02]}  Nd7 {[%clk 0:02:59]} 7. O-O {[%clk 0:03:03]}  c5 {[%clk 0:02:58]} 8. dxc5 {[%clk 0:03:02]}  Nxc5 {[%clk 0:02:58]} 9. Bb5+ {[%clk 0:03:02]}  Nc6 {[%clk 0:02:55]} 10. e5 {[%clk 0:02:29]}  d5 {[%clk 0:02:47]} 11. Be3 {[%clk 0:02:27]}  Bf8 {[%clk 0:02:42]} 12. Nd4 {[%clk 0:02:16]}  Bd7 {[%clk 0:02:40]} 13. Kh1 {[%clk 0:02:16]}  a6 {[%clk 0:02:35]} 14. Be2 {[%clk 0:02:16]}  Rc8 {[%clk 0:02:29]} 15. Bf3 {[%clk 0:02:14]}  h5 {[%clk 0:02:25]} 16. a3 {[%clk 0:02:12]}  Ne7 {[%clk 0:02:16]} 17. Qd2 {[%clk 0:02:05]}  Nf5 {[%clk 0:02:15]} 18. Bf2 {[%clk 0:02:01]}  Bc6 {[%clk 0:02:09]} 19. Rad1 {[%clk 0:01:57]}  h4 {[%clk 0:02:08]} 20. Nxc6 {[%clk 0:01:49]}  bxc6 {[%clk 0:02:06]} 21. b4 {[%clk 0:01:48]}  Nd7 {[%clk 0:02:04]} 22. Ne2 {[%clk 0:01:42]}  a5 {[%clk 0:01:59]} 23. c4 {[%clk 0:01:32]}  axb4 {[%clk 0:01:59]} 24. axb4 {[%clk 0:01:32]}  Bh6 {[%clk 0:01:43]} 25. b5 {[%clk 0:01:29]}  Nxe5 {[%clk 0:01:41]} 26. Qc3 {[%clk 0:01:23]}  Bg7 {[%clk 0:01:14]} 27. fxe5 {[%clk 0:01:16]}  cxb5 {[%clk 0:01:14]} 28. Qb2 {[%clk 0:00:56]}  bxc4 {[%clk 0:01:14]} 29. Nf4 {[%clk 0:00:51]}  Qc7 {[%clk 0:01:09]} 30. Rfe1 {[%clk 0:00:49]}  O-O {[%clk 0:01:04]} 31. Bg4 {[%clk 0:00:49]}  c3 {[%clk 0:00:46]} 32. Qe2 {[%clk 0:00:49]}  Rfe8 {[%clk 0:00:30]} 33. Bxf5 {[%clk 0:00:38]}  exf5 {[%clk 0:00:30]} 34. Bd4 {[%clk 0:00:38]}  c2 {[%clk 0:00:28]} 35. Rc1 {[%clk 0:00:38]}  Qc4 {[%clk 0:00:26]} 36. Qf2 {[%clk 0:00:37]}  Bh6 {[%clk 0:00:16]} 37. e6 {[%clk 0:00:36]}  Bxf4 {[%clk 0:00:12]} 38. Qxf4 {[%clk 0:00:35]}  f6 {[%clk 0:00:09]} 39. Qxh4 {[%clk 0:00:23]}  g5 {[%clk 0:00:09]} 40. Qf2 {[%clk 0:00:23]}  Rc6 {[%clk 0:00:04]} 41. Qxf5 {[%clk 0:00:21]}  Qxd4 {[%clk 0:00:02]} 42. Qg6+ {[%clk 0:00:21]}  Kf8 {[%clk 0:00:03]} 43. Qf7# {[%clk 0:00:22]} 1-0


[Site "https://www.chess.com"]

[Event "Titled Tuesday Blitz November 07 Late 2023"]
[White "Oglaza, Oskar"]
[Black "Rostovtsev, Dmitry"]
[WhiteFideId "1194402"]
[BlackFideId "34278320"]
[WhiteElo "2574"]
[BlackElo "2939"]
[Result "0-1"]
[Round "9"]
[TimeControl "180+1"]
[Date "2023.11.07"]
[WhiteClock "0:00:18"]
[BlackClock "0:01:32"]
[Board "16"]

1. e4 {[%clk 0:03:00]}  e5 {[%clk 0:02:54]} 2. d4 {[%clk 0:02:57]}  exd4 {[%clk 0:02:45]} 3. Qxd4 {[%clk 0:02:57]}  Nc6 {[%clk 0:02:45]} 4. Qe3 {[%clk 0:02:57]}  Nf6 {[%clk 0:02:44]} 5. Nc3 {[%clk 0:02:57]}  Bb4 {[%clk 0:02:42]} 6. Bd2 {[%clk 0:02:57]}  O-O {[%clk 0:02:39]} 7. O-O-O {[%clk 0:02:57]}  Re8 {[%clk 0:02:40]} 8. Qg3 {[%clk 0:02:57]}  Nxe4 {[%clk 0:02:36]} 9. Nxe4 {[%clk 0:02:50]}  Rxe4 {[%clk 0:02:37]} 10. c3 {[%clk 0:02:18]}  Bc5 {[%clk 0:02:30]} 11. Bd3 {[%clk 0:02:13]}  Re8 {[%clk 0:02:29]} 12. Nf3 {[%clk 0:01:52]}  d5 {[%clk 0:02:29]} 13. Bg5 {[%clk 0:01:49]}  f6 {[%clk 0:02:25]} 14. h4 {[%clk 0:01:27]}  Bd6 {[%clk 0:01:57]} 15. Bf4 {[%clk 0:01:25]}  Bxf4+ {[%clk 0:01:57]} 16. Qxf4 {[%clk 0:01:25]}  Ne5 {[%clk 0:01:58]} 17. Bc2 {[%clk 0:01:12]}  Qd6 {[%clk 0:01:57]} 18. Kb1 {[%clk 0:00:59]}  Bd7 {[%clk 0:01:57]} 19. h5 {[%clk 0:00:57]}  Nc4 {[%clk 0:01:53]} 20. Qd4 {[%clk 0:00:54]}  Qb6 {[%clk 0:01:49]} 21. Qxb6 {[%clk 0:00:32]}  Nxb6 {[%clk 0:01:50]} 22. h6 {[%clk 0:00:31]}  g6 {[%clk 0:01:48]} 23. Rhe1 {[%clk 0:00:29]}  Rxe1 {[%clk 0:01:48]} 24. Rxe1 {[%clk 0:00:30]}  Re8 {[%clk 0:01:49]} 25. Rxe8+ {[%clk 0:00:27]}  Bxe8 {[%clk 0:01:48]} 26. b3 {[%clk 0:00:28]}  c5 {[%clk 0:01:45]} 27. Kc1 {[%clk 0:00:28]}  Kf7 {[%clk 0:01:43]} 28. Kd2 {[%clk 0:00:28]}  Ke6 {[%clk 0:01:43]} 29. Ke3 {[%clk 0:00:28]}  Nc8 {[%clk 0:01:39]} 30. g4 {[%clk 0:00:27]}  Nd6 {[%clk 0:01:39]} 31. Kf4 {[%clk 0:00:27]}  Nf7 {[%clk 0:01:36]} 32. g5 {[%clk 0:00:26]}  Bb5 {[%clk 0:01:35]} 33. gxf6 {[%clk 0:00:20]}  Kxf6 {[%clk 0:01:36]} 34. a4 {[%clk 0:00:20]}  Be2 {[%clk 0:01:32]} 35. Ng1 {[%clk 0:00:20]}  Bh5 {[%clk 0:01:33]} 36. f3 {[%clk 0:00:19]}  Nxh6 {[%clk 0:01:33]} 37. c4 {[%clk 0:00:18]}  d4 {[%clk 0:01:33]} 38. Be4 {[%clk 0:00:18]}  b6 {[%clk 0:01:33]} 39. Ne2 {[%clk 0:00:18]}  Nf7 {[%clk 0:01:32]} 40. Ng3 {[%clk 0:00:18]}  g5# {[%clk 0:01:32]} 0-1


[Site "https://www.chess.com"]

[Event "Titled Tuesday Blitz November 07 Late 2023"]
[White "Matlakov, Maxim"]
[Black "Perske, Thore"]
[WhiteFideId "4168003"]
[BlackFideId "12902195"]
[WhiteElo "2962"]
[BlackElo "2655"]
[Result "1-0"]
[Round "9"]
[TimeControl "180+1"]
[Date "2023.11.07"]
[WhiteClock "0:00:26"]
[BlackClock "0:00:12"]
[Board "18"]

1. d4 {[%clk 0:03:00]}  Nf6 {[%clk 0:02:59]} 2. Nf3 {[%clk 0:03:01]}  g6 {[%clk 0:02:59]} 3. Bg5 {[%clk 0:02:58]}  Bg7 {[%clk 0:02:59]} 4. Nbd2 {[%clk 0:02:58]}  d5 {[%clk 0:02:59]} 5. e3 {[%clk 0:02:58]}  O-O {[%clk 0:02:59]} 6. c3 {[%clk 0:02:59]}  Nbd7 {[%clk 0:02:58]} 7. Be2 {[%clk 0:02:59]}  b6 {[%clk 0:02:58]} 8. h3 {[%clk 0:02:58]}  Bb7 {[%clk 0:02:58]} 9. Bf4 {[%clk 0:02:59]}  c5 {[%clk 0:02:57]} 10. a4 {[%clk 0:02:58]}  a6 {[%clk 0:02:56]} 11. O-O {[%clk 0:02:57]}  Re8 {[%clk 0:02:51]} 12. Qb1 {[%clk 0:02:53]}  e6 {[%clk 0:02:32]} 13. b4 {[%clk 0:02:52]}  cxd4 {[%clk 0:02:15]} 14. cxd4 {[%clk 0:02:52]}  Rc8 {[%clk 0:02:12]} 15. a5 {[%clk 0:02:39]}  Ne4 {[%clk 0:01:51]} 16. Rc1 {[%clk 0:02:18]}  Nc3 {[%clk 0:01:40]} 17. Qd3 {[%clk 0:02:18]}  Nxe2+ {[%clk 0:01:37]} 18. Qxe2 {[%clk 0:02:19]}  Rxc1+ {[%clk 0:01:37]} 19. Rxc1 {[%clk 0:02:18]}  bxa5 {[%clk 0:01:37]} 20. Bc7 {[%clk 0:02:10]}  Qe7 {[%clk 0:01:37]} 21. Bxa5 {[%clk 0:02:06]}  Rc8 {[%clk 0:01:37]} 22. Qf1 {[%clk 0:01:59]}  Rxc1 {[%clk 0:01:23]} 23. Qxc1 {[%clk 0:02:00]}  Qd6 {[%clk 0:01:17]} 24. Nb3 {[%clk 0:01:58]}  Bc6 {[%clk 0:01:11]} 25. Nc5 {[%clk 0:01:53]}  Bb5 {[%clk 0:01:09]} 26. h4 {[%clk 0:01:41]}  h6 {[%clk 0:01:09]} 27. g3 {[%clk 0:01:26]}  Qc6 {[%clk 0:01:08]} 28. Kg2 {[%clk 0:01:23]}  Nb6 {[%clk 0:01:02]} 29. Bxb6 {[%clk 0:01:19]}  Qxb6 {[%clk 0:01:02]} 30. Ne5 {[%clk 0:01:18]}  Qc7 {[%clk 0:00:54]} 31. Qa1 {[%clk 0:01:14]}  Bf8 {[%clk 0:00:42]} 32. Qb1 {[%clk 0:01:05]}  Bg7 {[%clk 0:00:39]} 33. Nxg6 {[%clk 0:00:59]}  fxg6 {[%clk 0:00:38]} 34. Qxg6 {[%clk 0:01:00]}  Qf7 {[%clk 0:00:37]} 35. Qxe6 {[%clk 0:00:55]}  Qxe6 {[%clk 0:00:37]} 36. Nxe6 {[%clk 0:00:56]}  Bh8 {[%clk 0:00:25]} 37. g4 {[%clk 0:00:53]}  Kf7 {[%clk 0:00:25]} 38. Nc5 {[%clk 0:00:53]}  Bf6 {[%clk 0:00:24]} 39. Kg3 {[%clk 0:00:53]}  Be7 {[%clk 0:00:23]} 40. f4 {[%clk 0:00:53]}  Kf6 {[%clk 0:00:18]} 41. Kf3 {[%clk 0:00:51]}  Kg6 {[%clk 0:00:18]} 42. h5+ {[%clk 0:00:50]}  Kf7 {[%clk 0:00:18]} 43. e4 {[%clk 0:00:48]}  dxe4+ {[%clk 0:00:18]} 44. Kxe4 {[%clk 0:00:49]}  Bc4 {[%clk 0:00:18]} 45. Kf5 {[%clk 0:00:44]}  Bd6 {[%clk 0:00:17]} 46. g5 {[%clk 0:00:43]}  hxg5 {[%clk 0:00:17]} 47. fxg5 {[%clk 0:00:44]}  Bxc5 {[%clk 0:00:16]} 48. dxc5 {[%clk 0:00:33]}  Bd3+ {[%clk 0:00:16]} 49. Ke5 {[%clk 0:00:33]}  Be2 {[%clk 0:00:17]} 50. h6 {[%clk 0:00:28]}  Bd3 {[%clk 0:00:13]} 51. Kd6 {[%clk 0:00:27]}  Kg6 {[%clk 0:00:13]} 52. c6 {[%clk 0:00:26]}  Kxg5 {[%clk 0:00:12]} 53. c7 {[%clk 0:00:26]}  Bf5 {[%clk 0:00:12]} 54. h7 {[%clk 0:00:26]} 1-0


[Site "https://www.chess.com"]

[Event "Titled Tuesday Blitz November 07 Late 2023"]
[White "Yeletsky, Ivan"]
[Black "Roebers, Eline"]
[WhiteFideId "24180327"]
[BlackFideId "1058401"]
[WhiteElo "2925"]
[BlackElo "2651"]
[Result "1-0"]
[Round "9"]
[TimeControl "180+1"]
[Date "2023.11.07"]
[WhiteClock "0:00:15"]
[BlackClock "0:01:10"]
[Board "19"]

1. e4 {[%clk 0:03:00]}  c5 {[%clk 0:02:59]} 2. Nf3 {[%clk 0:03:00]}  e6 {[%clk 0:03:00]} 3. b3 {[%clk 0:02:57]}  b6 {[%clk 0:02:59]} 4. Bb2 {[%clk 0:02:56]}  Bb7 {[%clk 0:03:00]} 5. Qe2 {[%clk 0:02:57]}  Nf6 {[%clk 0:02:57]} 6. Nc3 {[%clk 0:02:55]}  Nc6 {[%clk 0:02:57]} 7. e5 {[%clk 0:02:49]}  Ng4 {[%clk 0:02:56]} 8. h3 {[%clk 0:02:48]}  Nh6 {[%clk 0:02:56]} 9. O-O-O {[%clk 0:02:46]}  Nf5 {[%clk 0:02:53]} 10. Ne4 {[%clk 0:02:45]}  Rc8 {[%clk 0:02:47]} 11. Kb1 {[%clk 0:02:42]}  Qc7 {[%clk 0:02:42]} 12. Qe1 {[%clk 0:01:56]}  a6 {[%clk 0:02:36]} 13. g4 {[%clk 0:01:50]}  Nfd4 {[%clk 0:02:34]} 14. Nxd4 {[%clk 0:01:51]}  cxd4 {[%clk 0:02:30]} 15. Nd6+ {[%clk 0:01:51]}  Bxd6 {[%clk 0:02:29]} 16. exd6 {[%clk 0:01:51]}  Qxd6 {[%clk 0:02:29]} 17. Bg2 {[%clk 0:01:44]}  O-O {[%clk 0:02:27]} 18. d3 {[%clk 0:01:37]}  Rc7 {[%clk 0:02:25]} 19. Qd2 {[%clk 0:01:19]}  Rfc8 {[%clk 0:02:22]} 20. Rhe1 {[%clk 0:01:14]}  a5 {[%clk 0:02:17]} 21. a3 {[%clk 0:01:05]}  e5 {[%clk 0:02:13]} 22. f4 {[%clk 0:00:55]}  exf4 {[%clk 0:02:12]} 23. Re4 {[%clk 0:00:42]}  g5 {[%clk 0:02:07]} 24. Rde1 {[%clk 0:00:37]}  h6 {[%clk 0:02:00]} 25. h4 {[%clk 0:00:30]}  b5 {[%clk 0:01:46]} 26. hxg5 {[%clk 0:00:30]}  hxg5 {[%clk 0:01:46]} 27. Re8+ {[%clk 0:00:22]}  Rxe8 {[%clk 0:01:45]} 28. Rxe8+ {[%clk 0:00:23]}  Kg7 {[%clk 0:01:45]} 29. Bxc6 {[%clk 0:00:20]}  Bxc6 {[%clk 0:01:41]} 30. Qh2 {[%clk 0:00:18]}  Kg6 {[%clk 0:01:11]} 31. Qh5+ {[%clk 0:00:15]}  Kf6 {[%clk 0:01:11]} 32. Qh8+ {[%clk 0:00:15]}  Kg6 {[%clk 0:01:10]} 33. Rg8# {[%clk 0:00:15]} 1-0


[Site "https://www.chess.com"]